[Event "Late-Titled-Tuesday-Blitz-May-28-2024"]
[Site "Chess.com"]
[Date "2024.05.28"]
[Round "11"]
[White "Qvalda"]
[Black "toninhojit"]
[Result "1-0"]
[WhiteElo "2403"]
[BlackElo "2524"]
[TimeControl "180+1"]
[EndTime "16:01:36 PDT"]
[Termination "Qvalda won by resignation"]

1. d4 {[%clk 0:03:00.9]} 1... Nf6 {[%clk 0:02:35.5]} 2. c4 {[%clk 0:03:01]} 2...
c5 {[%clk 0:02:36.4]} 3. d5 {[%clk 0:03:00.6]} 3... e6 {[%clk 0:02:36.6]} 4. Nc3
{[%clk 0:03:00.3]} 4... exd5 {[%clk 0:02:37.5]} 5. cxd5 {[%clk 0:03:00.3]} 5...
d6 {[%clk 0:02:38.1]} 6. Nf3 {[%clk 0:03:00.5]} 6... g6 {[%clk 0:02:38.8]} 7.
Bf4 {[%clk 0:03:00.7]} 7... Bg7 {[%clk 0:02:39.3]} 8. h3 {[%clk 0:03:01.3]} 8...
O-O {[%clk 0:02:39.5]} 9. e3 {[%clk 0:03:01.7]} 9... a6 {[%clk 0:02:38.9]} 10.
a4 {[%clk 0:03:01]} 10... Re8 {[%clk 0:02:33.4]} 11. Be2 {[%clk 0:03:00.9]}
11... Bf5 {[%clk 0:02:32.3]} 12. Nd2 {[%clk 0:02:59.1]} 12... Qa5 {[%clk
0:02:22.2]} 13. O-O {[%clk 0:02:57.1]} 13... Ne4 {[%clk 0:02:19.9]} 14. Nc4
{[%clk 0:02:45.8]} 14... Nxc3 {[%clk 0:02:14.9]} 15. bxc3 {[%clk 0:02:38.3]}
15... Qxc3 {[%clk 0:02:09.9]} 16. Rc1 {[%clk 0:02:38.4]} 16... Qb4 {[%clk
0:02:09.7]} 17. Nxd6 {[%clk 0:02:36.8]} 17... Rd8 {[%clk 0:02:10.2]} 18. Nxf5
{[%clk 0:02:35.5]} 18... gxf5 {[%clk 0:02:10]} 19. Rb1 {[%clk 0:02:26.4]} 19...
Qa5 {[%clk 0:02:07.5]} 20. Rxb7 {[%clk 0:02:25.4]} 20... Nd7 {[%clk 0:02:08]}
21. Bc7 {[%clk 0:02:18.8]} 21... Qc3 {[%clk 0:02:08.1]} 22. Bxd8 {[%clk
0:02:16.6]} 22... Rxd8 {[%clk 0:02:09]} 23. Qd3 {[%clk 0:02:12.8]} 23... Qe5
{[%clk 0:02:08]} 24. Bf3 {[%clk 0:02:05.5]} 24... Qd6 {[%clk 0:01:59.8]} 25.
Rfb1 {[%clk 0:02:01.5]} 25... c4 {[%clk 0:01:59.1]} 26. Qxc4 {[%clk 0:01:59.4]}
26... Ne5 {[%clk 0:01:58.8]} 27. Qf4 {[%clk 0:01:54.4]} 27... Bh6 {[%clk
0:01:56.8]} 28. Qxf5 {[%clk 0:01:54.3]} 1-0

[Event "Late-Titled-Tuesday-Blitz-May-28-2024"]
[Site "Chess.com"]
[Date "2024.05.28"]
[Round "11"]
[White "Kostukov_Alex"]
[Black "gxbg2000"]
[Result "1-0"]
[WhiteElo "2372"]
[BlackElo "2028"]
[TimeControl "180+1"]
[EndTime "16:02:27 PDT"]
[Termination "Kostukov_Alex won by resignation"]

1. g3 {[%clk 0:03:00.9]} 1... d5 {[%clk 0:02:58.8]} 2. Bg2 {[%clk 0:03:00.7]}
2... c6 {[%clk 0:02:59]} 3. d3 {[%clk 0:03:00.9]} 3... e5 {[%clk 0:02:59.1]} 4.
e4 {[%clk 0:03:00.5]} 4... d4 {[%clk 0:02:59.4]} 5. f4 {[%clk 0:02:59.9]} 5...
f6 {[%clk 0:02:59.8]} 6. fxe5 {[%clk 0:02:59.6]} 6... Nd7 {[%clk 0:02:53.1]} 7.
exf6 {[%clk 0:02:55.6]} 7... Ngxf6 {[%clk 0:02:52.3]} 8. Nf3 {[%clk 0:02:56.5]}
8... c5 {[%clk 0:02:51.6]} 9. O-O {[%clk 0:02:56.3]} 9... Bd6 {[%clk 0:02:50.1]}
10. Na3 {[%clk 0:02:55]} 10... O-O {[%clk 0:02:49.4]} 11. Nc4 {[%clk 0:02:54.1]}
11... Bc7 {[%clk 0:02:49.5]} 12. a4 {[%clk 0:02:54.2]} 12... a6 {[%clk
0:02:48.9]} 13. a5 {[%clk 0:02:51.9]} 13... Qe7 {[%clk 0:02:47.8]} 14. Bf4
{[%clk 0:02:44.3]} 14... Bxf4 {[%clk 0:02:47.1]} 15. gxf4 {[%clk 0:02:44.7]}
15... Ng4 {[%clk 0:02:47]} 16. Qd2 {[%clk 0:02:44.9]} 16... Rb8 {[%clk
0:02:35.9]} 17. h3 {[%clk 0:02:43.8]} 17... Nh6 {[%clk 0:02:23.8]} 18. f5 {[%clk
0:02:43]} 18... Nf7 {[%clk 0:02:21]} 19. Qf4 {[%clk 0:02:42]} 19... Re8 {[%clk
0:02:15.5]} 20. Rae1 {[%clk 0:02:38.5]} 20... Nfe5 {[%clk 0:02:15.4]} 21. Nfxe5
{[%clk 0:02:34]} 21... Nxe5 {[%clk 0:02:15.3]} 22. Nxe5 {[%clk 0:02:34]} 22...
Qxe5 {[%clk 0:02:15.3]} 23. Qxe5 {[%clk 0:02:34.9]} 23... Rxe5 {[%clk
0:02:15.5]} 24. b3 {[%clk 0:02:19.6]} 24... Bd7 {[%clk 0:02:14.9]} 25. Kf2
{[%clk 0:02:17.9]} 25... Kf7 {[%clk 0:02:14.4]} 26. Kg3 {[%clk 0:02:16.6]} 26...
Rbe8 {[%clk 0:02:11.8]} 27. Bf3 {[%clk 0:02:11.2]} 27... c4 {[%clk 0:02:01.7]}
28. Bh5+ {[%clk 0:02:07.7]} 28... Kf6 {[%clk 0:01:57.3]} 29. Bxe8 {[%clk
0:02:06.6]} 29... Bxe8 {[%clk 0:01:57]} 30. b4 {[%clk 0:02:05.8]} 30... c3
{[%clk 0:01:54.9]} 31. Kf4 {[%clk 0:02:02]} 31... Ba4 {[%clk 0:01:50.6]} 32. Re2
{[%clk 0:01:59]} 32... Rb5 {[%clk 0:01:48.9]} 33. Rb1 {[%clk 0:01:56.2]} 33...
Re5 {[%clk 0:01:47.5]} 34. Rg2 {[%clk 0:01:54.9]} 34... Bc6 {[%clk 0:01:43.4]}
35. Rxg7 {[%clk 0:01:51.7]} 35... Rxf5+ {[%clk 0:01:41.8]} 36. exf5 {[%clk
0:01:50.9]} 36... Kxg7 {[%clk 0:01:41.8]} 37. Ke5 {[%clk 0:01:50.9]} 37... Bg2
{[%clk 0:01:39.2]} 38. Rg1 {[%clk 0:01:48.6]} 1-0

[Event "Late-Titled-Tuesday-Blitz-May-28-2024"]
[Site "Chess.com"]
[Date "2024.05.28"]
[Round "11"]
[White "ReadySkate"]
[Black "Slovak_fighter2000"]
[Result "0-1"]
[WhiteElo "2689"]
[BlackElo "2574"]
[TimeControl "180+1"]
[EndTime "16:02:28 PDT"]
[Termination "Slovak_fighter2000 won by resignation"]

1. d4 {[%clk 0:03:00.9]} 1... d5 {[%clk 0:02:57.6]} 2. c4 {[%clk 0:03:01.1]}
2... c6 {[%clk 0:02:57.9]} 3. Nf3 {[%clk 0:03:00.7]} 3... Nf6 {[%clk 0:02:57.9]}
4. Nc3 {[%clk 0:03:01.1]} 4... e6 {[%clk 0:02:58]} 5. e3 {[%clk 0:03:01.3]} 5...
Nbd7 {[%clk 0:02:56.9]} 6. Qc2 {[%clk 0:03:01.8]} 6... a6 {[%clk 0:02:55.8]} 7.
Bd3 {[%clk 0:03:01.3]} 7... dxc4 {[%clk 0:02:54.9]} 8. Bxc4 {[%clk 0:03:02.2]}
8... b5 {[%clk 0:02:55.4]} 9. Bd3 {[%clk 0:03:02.8]} 9... Bb7 {[%clk 0:02:55.6]}
10. O-O {[%clk 0:03:03.4]} 10... c5 {[%clk 0:02:56]} 11. Be2 {[%clk 0:03:00.3]}
11... Be7 {[%clk 0:02:46.3]} 12. Rd1 {[%clk 0:02:58.5]} 12... Qb6 {[%clk
0:02:45.2]} 13. a4 {[%clk 0:02:56]} 13... b4 {[%clk 0:02:43.4]} 14. a5 {[%clk
0:02:55.3]} 14... Qc7 {[%clk 0:02:42.8]} 15. Na4 {[%clk 0:02:42]} 15... Be4
{[%clk 0:02:39.2]} 16. Qb3 {[%clk 0:02:33.5]} 16... Rc8 {[%clk 0:02:38.5]} 17.
Bd2 {[%clk 0:02:31.7]} 17... c4 {[%clk 0:02:29.6]} 18. Bxc4 {[%clk 0:01:57.5]}
18... Qxc4 {[%clk 0:02:28.8]} 19. Qxc4 {[%clk 0:01:46.6]} 19... Rxc4 {[%clk
0:02:29.7]} 20. b3 {[%clk 0:01:47.2]} 20... Rc8 {[%clk 0:02:23]} 21. Rdc1 {[%clk
0:01:47.5]} 21... O-O {[%clk 0:02:21.4]} 22. Nb6 {[%clk 0:01:42.5]} 22... Nxb6
{[%clk 0:02:19.1]} 23. axb6 {[%clk 0:01:43.4]} 23... Rxc1+ {[%clk 0:02:17.2]}
24. Rxc1 {[%clk 0:01:44.3]} 24... Rb8 {[%clk 0:02:11.8]} 25. Rc7 {[%clk
0:01:43.1]} 25... Bf8 {[%clk 0:02:03.1]} 26. Ne5 {[%clk 0:01:41.6]} 26... Bd5
{[%clk 0:01:47]} 27. Rxf7 {[%clk 0:01:37.1]} 27... Bxb3 {[%clk 0:01:45.1]} 28.
Ra7 {[%clk 0:01:32.9]} 28... Rxb6 {[%clk 0:01:40.2]} 29. Ra8 {[%clk 0:01:32.4]}
29... Bd5 {[%clk 0:01:38.8]} 30. Bc1 {[%clk 0:01:30.2]} 30... Bxa8 {[%clk
0:01:37.8]} 0-1

[Event "Late-Titled-Tuesday-Blitz-May-28-2024"]
[Site "Chess.com"]
[Date "2024.05.28"]
[Round "11"]
[White "attack2mateU"]
[Black "Valiyev_Shahin"]
[Result "1-0"]
[WhiteElo "2724"]
[BlackElo "2580"]
[TimeControl "180+1"]
[EndTime "16:02:33 PDT"]
[Termination "attack2mateU won by resignation"]

1. e4 {[%clk 0:03:00.9]} 1... c5 {[%clk 0:02:59]} 2. Nf3 {[%clk 0:03:01.3]} 2...
d6 {[%clk 0:02:55.8]} 3. d4 {[%clk 0:03:01.2]} 3... cxd4 {[%clk 0:02:56.6]} 4.
Nxd4 {[%clk 0:03:02.1]} 4... Nf6 {[%clk 0:02:57]} 5. Nc3 {[%clk 0:03:02.8]} 5...
a6 {[%clk 0:02:57.6]} 6. Be3 {[%clk 0:03:02.1]} 6... e5 {[%clk 0:02:56.1]} 7.
Nb3 {[%clk 0:03:02.1]} 7... Be7 {[%clk 0:02:56.8]} 8. h3 {[%clk 0:02:53.7]} 8...
Be6 {[%clk 0:02:56.3]} 9. Qf3 {[%clk 0:02:53.5]} 9... O-O {[%clk 0:02:47.9]} 10.
O-O-O {[%clk 0:02:50.6]} 10... b5 {[%clk 0:02:48]} 11. g4 {[%clk 0:02:48.5]}
11... b4 {[%clk 0:02:38.4]} 12. Nd5 {[%clk 0:02:49.1]} 12... Nxd5 {[%clk
0:02:38.6]} 13. exd5 {[%clk 0:02:50]} 13... Bc8 {[%clk 0:02:39.3]} 14. Kb1
{[%clk 0:02:42.9]} 14... a5 {[%clk 0:02:38.9]} 15. Nd2 {[%clk 0:02:40]} 15... a4
{[%clk 0:02:37.6]} 16. Bd3 {[%clk 0:02:35.4]} 16... Ba6 {[%clk 0:02:17.5]} 17.
Bf5 {[%clk 0:01:33.8]} 17... Nd7 {[%clk 0:02:07.5]} 18. Ne4 {[%clk 0:01:31.6]}
18... b3 {[%clk 0:02:01.3]} 19. cxb3 {[%clk 0:01:28.6]} 19... axb3 {[%clk
0:02:01.7]} 20. a3 {[%clk 0:01:28.7]} 20... g6 {[%clk 0:01:51.9]} 21. Bxd7
{[%clk 0:01:28.5]} 21... Qxd7 {[%clk 0:01:52.8]} 22. Nf6+ {[%clk 0:01:28.9]}
22... Bxf6 {[%clk 0:01:52.4]} 23. Qxf6 {[%clk 0:01:29.8]} 23... Rfc8 {[%clk
0:01:35.3]} 24. Bh6 {[%clk 0:01:09.6]} 1-0

[Event "Late-Titled-Tuesday-Blitz-May-28-2024"]
[Site "Chess.com"]
[Date "2024.05.28"]
[Round "11"]
[White "Bryanl106"]
[Black "KNVB"]
[Result "1-0"]
[WhiteElo "2720"]
[BlackElo "2777"]
[TimeControl "180+1"]
[EndTime "16:02:44 PDT"]
[Termination "Bryanl106 won by resignation"]

1. e4 {[%clk 0:03:00]} 1... e5 {[%clk 0:02:59.1]} 2. Nf3 {[%clk 0:03:00.1]} 2...
Nc6 {[%clk 0:02:58.5]} 3. Nc3 {[%clk 0:03:00.7]} 3... Nge7 {[%clk 0:02:58.2]} 4.
d4 {[%clk 0:02:57.8]} 4... Ng6 {[%clk 0:02:55.1]} 5. d5 {[%clk 0:02:55.4]} 5...
Nb8 {[%clk 0:02:55.3]} 6. h4 {[%clk 0:02:55.5]} 6... h5 {[%clk 0:02:47.2]} 7.
Bg5 {[%clk 0:02:55.7]} 7... Be7 {[%clk 0:02:47.2]} 8. d6 {[%clk 0:02:56.3]} 8...
cxd6 {[%clk 0:02:21.2]} 9. Bxe7 {[%clk 0:02:53.8]} 9... Kxe7 {[%clk 0:02:00.1]}
10. Bc4 {[%clk 0:02:47]} 10... Nf4 {[%clk 0:01:37.5]} 11. g3 {[%clk 0:02:27.7]}
11... Ne6 {[%clk 0:01:37.6]} 12. Qd2 {[%clk 0:02:27.7]} 12... Qa5 {[%clk
0:01:04.6]} 13. Nd5+ {[%clk 0:02:27.4]} 13... Qxd5 {[%clk 0:01:03.4]} 14. Bxd5
{[%clk 0:02:21.9]} 14... Nc6 {[%clk 0:01:00.2]} 15. O-O-O {[%clk 0:02:20.4]}
15... Rd8 {[%clk 0:00:52.5]} 16. Bxe6 {[%clk 0:02:12.3]} 16... dxe6 {[%clk
0:00:51.7]} 17. Qg5+ {[%clk 0:02:12.5]} 17... Kf8 {[%clk 0:00:51.2]} 18. Qxh5
{[%clk 0:02:12.9]} 18... g6 {[%clk 0:00:46.4]} 19. Qh7 {[%clk 0:02:12]} 19...
Ke7 {[%clk 0:00:46.8]} 20. Ng5 {[%clk 0:02:12]} 20... Rf8 {[%clk 0:00:46.9]} 21.
Qg7 {[%clk 0:02:10.9]} 21... Bd7 {[%clk 0:00:43.8]} 22. Nh7 {[%clk 0:02:11.2]}
22... Rg8 {[%clk 0:00:40.9]} 23. Qf6+ {[%clk 0:02:11.2]} 23... Ke8 {[%clk
0:00:36.7]} 24. Rxd6 {[%clk 0:02:12.1]} 24... Rc8 {[%clk 0:00:33]} 25. Rhd1
{[%clk 0:02:11.7]} 25... Rc7 {[%clk 0:00:33.4]} 26. Qg5 {[%clk 0:02:08.8]} 26...
Rh8 {[%clk 0:00:27.9]} 27. Nf6+ {[%clk 0:02:08.7]} 1-0

[Event "Late-Titled-Tuesday-Blitz-May-28-2024"]
[Site "Chess.com"]
[Date "2024.05.28"]
[Round "11"]
[White "GarayevKanan"]
[Black "BogdanDeac"]
[Result "0-1"]
[WhiteElo "2733"]
[BlackElo "3064"]
[TimeControl "180+1"]
[EndTime "16:02:47 PDT"]
[Termination "BogdanDeac won by resignation"]

1. c4 {[%clk 0:02:59.8]} 1... e6 {[%clk 0:02:58.3]} 2. d4 {[%clk 0:02:57.5]}
2... Nf6 {[%clk 0:02:56.8]} 3. g3 {[%clk 0:02:57]} 3... d5 {[%clk 0:02:56]} 4.
Bg2 {[%clk 0:02:57.2]} 4... dxc4 {[%clk 0:02:56]} 5. Nf3 {[%clk 0:02:56.9]} 5...
Nc6 {[%clk 0:02:56.5]} 6. O-O {[%clk 0:02:56]} 6... Rb8 {[%clk 0:02:56.4]} 7.
Qc2 {[%clk 0:02:48.1]} 7... b5 {[%clk 0:02:51.8]} 8. a4 {[%clk 0:02:48]} 8... a6
{[%clk 0:02:36.9]} 9. b3 {[%clk 0:02:44.5]} 9... Nb4 {[%clk 0:02:26.3]} 10. Qb2
{[%clk 0:02:43.2]} 10... cxb3 {[%clk 0:02:26]} 11. Qxb3 {[%clk 0:02:43.4]} 11...
Be7 {[%clk 0:02:15.4]} 12. Nc3 {[%clk 0:02:41.2]} 12... O-O {[%clk 0:02:11.2]}
13. axb5 {[%clk 0:02:41.1]} 13... axb5 {[%clk 0:02:11.2]} 14. e4 {[%clk
0:02:40.6]} 14... c6 {[%clk 0:01:53.5]} 15. Rd1 {[%clk 0:02:37.9]} 15... Bb7
{[%clk 0:01:50.6]} 16. Bf4 {[%clk 0:02:36.1]} 16... Ra8 {[%clk 0:01:50.3]} 17.
Ne5 {[%clk 0:02:24.5]} 17... Rxa1 {[%clk 0:01:48.9]} 18. Rxa1 {[%clk 0:02:18.7]}
18... Qxd4 {[%clk 0:01:49.3]} 19. Rd1 {[%clk 0:02:16.8]} 19... Qb6 {[%clk
0:01:49.1]} 20. Be3 {[%clk 0:02:15.4]} 20... Qc7 {[%clk 0:01:44.2]} 21. Bf4
{[%clk 0:02:13.6]} 21... Qc8 {[%clk 0:01:30.8]} 22. g4 {[%clk 0:02:04.4]} 22...
Rd8 {[%clk 0:01:28.9]} 23. Rc1 {[%clk 0:02:02.1]} 23... Nd7 {[%clk 0:01:08]} 24.
Nxb5 {[%clk 0:01:59.7]} 24... Nxe5 {[%clk 0:01:07.1]} 25. Bxe5 {[%clk
0:02:00.6]} 25... Nd3 {[%clk 0:01:07.3]} 26. Na7 {[%clk 0:01:53.1]} 26... Nxc1
{[%clk 0:01:01.1]} 27. Qc2 {[%clk 0:01:41.7]} 27... Qa8 {[%clk 0:00:59.4]} 0-1

[Event "Late-Titled-Tuesday-Blitz-May-28-2024"]
[Site "Chess.com"]
[Date "2024.05.28"]
[Round "11"]
[White "BenchGM"]
[Black "Romkachess"]
[Result "1-0"]
[WhiteElo "2257"]
[BlackElo "2535"]
[TimeControl "180+1"]
[EndTime "16:02:55 PDT"]
[Termination "BenchGM won on time"]

1. d4 {[%clk 0:02:59.2]} 1... Nf6 {[%clk 0:02:57.5]} 2. Nf3 {[%clk 0:02:59]}
2... e6 {[%clk 0:02:54.1]} 3. Bg5 {[%clk 0:02:59.3]} 3... Be7 {[%clk 0:02:52]}
4. e3 {[%clk 0:02:58.8]} 4... c5 {[%clk 0:02:51.3]} 5. c3 {[%clk 0:02:58.1]}
5... Nc6 {[%clk 0:02:51.3]} 6. Bd3 {[%clk 0:02:57.6]} 6... Qb6 {[%clk
0:02:51.3]} 7. Qc1 {[%clk 0:02:55.6]} 7... h6 {[%clk 0:02:48.5]} 8. Bf4 {[%clk
0:02:55.5]} 8... Bd8 {[%clk 0:02:48.4]} 9. Nbd2 {[%clk 0:02:55.9]} 9... d5
{[%clk 0:02:45]} 10. O-O {[%clk 0:02:52.8]} 10... O-O {[%clk 0:02:40.5]} 11. Re1
{[%clk 0:02:52.5]} 11... cxd4 {[%clk 0:02:37.7]} 12. exd4 {[%clk 0:02:52.2]}
12... Bc7 {[%clk 0:02:38]} 13. Ne5 {[%clk 0:02:51.4]} 13... Nd7 {[%clk
0:02:32.7]} 14. Ndf3 {[%clk 0:02:49]} 14... Ndxe5 {[%clk 0:02:31.6]} 15. Nxe5
{[%clk 0:02:48.7]} 15... Nxe5 {[%clk 0:02:31.1]} 16. dxe5 {[%clk 0:02:47.9]}
16... f5 {[%clk 0:01:51.2]} 17. Bxh6 {[%clk 0:02:05]} 1-0

[Event "Late-Titled-Tuesday-Blitz-May-28-2024"]
[Site "Chess.com"]
[Date "2024.05.28"]
[Round "11"]
[White "Kombinator01"]
[Black "Tol_Tol"]
[Result "0-1"]
[WhiteElo "2451"]
[BlackElo "2357"]
[TimeControl "180+1"]
[EndTime "16:02:57 PDT"]
[Termination "Tol_Tol won by resignation"]

1. a3 {[%clk 0:03:00.9]} 1... Nf6 {[%clk 0:02:57.4]} 2. b3 {[%clk 0:03:01.5]}
2... g6 {[%clk 0:02:57.6]} 3. c3 {[%clk 0:03:02.3]} 3... Bg7 {[%clk 0:02:58.2]}
4. d3 {[%clk 0:03:03.2]} 4... O-O {[%clk 0:02:58.7]} 5. e3 {[%clk 0:03:03.6]}
5... d6 {[%clk 0:02:59.2]} 6. f3 {[%clk 0:03:04.1]} 6... e5 {[%clk 0:02:59.7]}
7. g3 {[%clk 0:03:04.7]} 7... a5 {[%clk 0:03:00.2]} 8. h3 {[%clk 0:03:05.1]}
8... d5 {[%clk 0:02:59]} 9. Bb2 {[%clk 0:03:05.3]} 9... c5 {[%clk 0:02:58.9]}
10. Nd2 {[%clk 0:03:05.7]} 10... Qc7 {[%clk 0:02:59.1]} 11. Ne2 {[%clk
0:03:04.7]} 11... Nc6 {[%clk 0:02:55.1]} 12. Qc2 {[%clk 0:03:04.4]} 12... Re8
{[%clk 0:02:53.4]} 13. h4 {[%clk 0:03:04.4]} 13... b5 {[%clk 0:02:49]} 14. Bg2
{[%clk 0:03:02.6]} 14... a4 {[%clk 0:02:48.2]} 15. O-O {[%clk 0:02:56.2]} 15...
axb3 {[%clk 0:02:46.4]} 16. Nxb3 {[%clk 0:02:52.1]} 16... c4 {[%clk 0:02:46.4]}
17. Nc5 {[%clk 0:02:39.8]} 17... Na5 {[%clk 0:02:32]} 18. d4 {[%clk 0:02:38.4]}
18... exd4 {[%clk 0:02:30.6]} 19. exd4 {[%clk 0:02:36]} 19... Bf5 {[%clk
0:02:24.3]} 20. Qd2 {[%clk 0:02:29.9]} 20... Bf8 {[%clk 0:02:15.1]} 21. Rae1
{[%clk 0:02:14.6]} 21... Bxc5 {[%clk 0:02:09.3]} 22. dxc5 {[%clk 0:02:15.5]}
22... Bd3 {[%clk 0:02:09]} 23. Nd4 {[%clk 0:02:02.1]} 23... Bxf1 {[%clk
0:02:01]} 24. Rxf1 {[%clk 0:02:03]} 24... Qxc5 {[%clk 0:02:00.3]} 25. Qg5 {[%clk
0:02:01.7]} 25... Ra6 {[%clk 0:01:52.4]} 26. Kh2 {[%clk 0:01:59.5]} 26... Nb3
{[%clk 0:01:50.4]} 27. Nxb3 {[%clk 0:01:58.6]} 27... cxb3 {[%clk 0:01:50.1]} 28.
c4 {[%clk 0:01:59.1]} 28... bxc4 {[%clk 0:01:30.4]} 29. Bxf6 {[%clk 0:01:57.8]}
29... Rxf6 {[%clk 0:01:23.7]} 30. Qxf6 {[%clk 0:01:58.7]} 30... c3 {[%clk
0:01:24.1]} 31. h5 {[%clk 0:01:56.7]} 31... c2 {[%clk 0:01:07.2]} 32. h6 {[%clk
0:01:56.1]} 32... Qf8 {[%clk 0:01:07.3]} 33. Qc3 {[%clk 0:01:56.6]} 33... Qxh6+
{[%clk 0:01:06.7]} 34. Kg1 {[%clk 0:01:50.7]} 34... Qe3+ {[%clk 0:01:06.4]} 0-1

[Event "Late-Titled-Tuesday-Blitz-May-28-2024"]
[Site "Chess.com"]
[Date "2024.05.28"]
[Round "11"]
[White "RaugintaBulba"]
[Black "lamomiajunior"]
[Result "0-1"]
[WhiteElo "2453"]
[BlackElo "2712"]
[TimeControl "180+1"]
[EndTime "16:03:58 PDT"]
[Termination "lamomiajunior won by checkmate"]

1. d4 {[%clk 0:03:00.9]} 1... Nf6 {[%clk 0:02:59.8]} 2. Nc3 {[%clk 0:02:57.2]}
2... d5 {[%clk 0:02:59.4]} 3. Bf4 {[%clk 0:02:57.2]} 3... a6 {[%clk 0:02:57]} 4.
e3 {[%clk 0:02:55.9]} 4... b5 {[%clk 0:02:55.1]} 5. a3 {[%clk 0:02:52.9]} 5...
Nbd7 {[%clk 0:02:50.1]} 6. g4 {[%clk 0:02:50.6]} 6... Nb6 {[%clk 0:02:49.3]} 7.
Be2 {[%clk 0:02:38.6]} 7... e6 {[%clk 0:02:48.3]} 8. h4 {[%clk 0:02:31.6]} 8...
Bb7 {[%clk 0:02:48.1]} 9. g5 {[%clk 0:02:29.2]} 9... Ne4 {[%clk 0:02:45.5]} 10.
Nxe4 {[%clk 0:02:26.2]} 10... dxe4 {[%clk 0:02:46.4]} 11. h5 {[%clk 0:02:23.7]}
11... Bd6 {[%clk 0:02:45.1]} 12. Bxd6 {[%clk 0:02:15.5]} 12... Qxd6 {[%clk
0:02:46]} 13. Nh3 {[%clk 0:02:15.8]} 13... O-O {[%clk 0:02:38.7]} 14. Nf4 {[%clk
0:02:08.5]} 14... Nd5 {[%clk 0:02:30.2]} 15. Nxd5 {[%clk 0:01:50.5]} 15... Bxd5
{[%clk 0:02:31.1]} 16. Qd2 {[%clk 0:01:47.7]} 16... c5 {[%clk 0:02:23.1]} 17.
O-O-O {[%clk 0:01:43.7]} 17... c4 {[%clk 0:02:19.8]} 18. c3 {[%clk 0:01:38.1]}
18... a5 {[%clk 0:02:19.6]} 19. g6 {[%clk 0:01:31.4]} 19... fxg6 {[%clk
0:02:19.4]} 20. hxg6 {[%clk 0:01:31.7]} 20... h6 {[%clk 0:02:20.3]} 21. Kc2
{[%clk 0:01:22.1]} 21... Rab8 {[%clk 0:02:10.3]} 22. Ra1 {[%clk 0:01:15.6]}
22... Rxf2 {[%clk 0:02:08.5]} 23. Qe1 {[%clk 0:01:11.6]} 23... Rbf8 {[%clk
0:02:07]} 24. Kd2 {[%clk 0:01:05.5]} 24... Qg3 {[%clk 0:02:01.4]} 25. Rg1 {[%clk
0:01:03.7]} 25... Qd6 {[%clk 0:01:45.3]} 26. Rg4 {[%clk 0:00:53.3]} 26... e5
{[%clk 0:01:43.9]} 27. Qg1 {[%clk 0:00:48.5]} 27... exd4 {[%clk 0:01:42.2]} 28.
exd4 {[%clk 0:00:48.5]} 28... e3+ {[%clk 0:01:37]} 29. Kd1 {[%clk 0:00:46.6]}
29... Qf6 {[%clk 0:01:27.5]} 30. Rg3 {[%clk 0:00:41.3]} 30... Qf4 {[%clk
0:01:22.9]} 31. Ke1 {[%clk 0:00:35.9]} 31... Be4 {[%clk 0:01:19]} 32. Rg4 {[%clk
0:00:35]} 32... Rxe2+ {[%clk 0:01:17.4]} 33. Kd1 {[%clk 0:00:27.2]} 33... Rd2+
{[%clk 0:01:17.7]} 34. Kc1 {[%clk 0:00:27.1]} 34... Qf1+ {[%clk 0:01:17.3]} 35.
Qxf1 {[%clk 0:00:25.6]} 35... Rxf1# {[%clk 0:01:18.2]} 0-1

[Event "Late-Titled-Tuesday-Blitz-May-28-2024"]
[Site "Chess.com"]
[Date "2024.05.28"]
[Round "11"]
[White "Shuvalov"]
[Black "Quattroporte300"]
[Result "1-0"]
[WhiteElo "2569"]
[BlackElo "2420"]
[TimeControl "180+1"]
[EndTime "16:04:00 PDT"]
[Termination "Shuvalov won on time"]

1. d4 {[%clk 0:03:00.9]} 1... Nf6 {[%clk 0:02:59.2]} 2. c4 {[%clk 0:03:00.6]}
2... g6 {[%clk 0:02:59.5]} 3. Nc3 {[%clk 0:03:00]} 3... Bg7 {[%clk 0:03:00.1]}
4. e4 {[%clk 0:03:00.1]} 4... O-O {[%clk 0:03:00.4]} 5. Nf3 {[%clk 0:03:00.7]}
5... d6 {[%clk 0:03:00.9]} 6. Be2 {[%clk 0:03:01.1]} 6... Nbd7 {[%clk
0:03:01.4]} 7. O-O {[%clk 0:03:01.5]} 7... e5 {[%clk 0:03:02.1]} 8. Be3 {[%clk
0:03:01.5]} 8... Ng4 {[%clk 0:03:00.6]} 9. Bg5 {[%clk 0:03:01.2]} 9... f6 {[%clk
0:03:01]} 10. Bh4 {[%clk 0:03:01.3]} 10... Nh6 {[%clk 0:02:53.6]} 11. d5 {[%clk
0:02:56.8]} 11... a6 {[%clk 0:02:48.4]} 12. Ne1 {[%clk 0:02:56.7]} 12... Qe8
{[%clk 0:02:47.9]} 13. g4 {[%clk 0:02:55.4]} 13... Nf7 {[%clk 0:02:29]} 14. Ng2
{[%clk 0:02:53.9]} 14... Ng5 {[%clk 0:02:28.1]} 15. f3 {[%clk 0:02:44.8]} 15...
Nb6 {[%clk 0:02:04.2]} 16. Kh1 {[%clk 0:02:39.4]} 16... Bd7 {[%clk 0:02:03.3]}
17. Bf2 {[%clk 0:02:33.1]} 17... Nh3 {[%clk 0:01:53.3]} 18. Be3 {[%clk
0:02:32.6]} 18... g5 {[%clk 0:01:50.6]} 19. c5 {[%clk 0:02:27.5]} 19... Nc8
{[%clk 0:01:45.2]} 20. Qb3 {[%clk 0:02:24.1]} 20... Rb8 {[%clk 0:00:55.5]} 21.
c6 {[%clk 0:02:20.5]} 21... Nb6 {[%clk 0:00:26.8]} 22. cxd7 {[%clk 0:02:12.9]}
22... Nxd7 {[%clk 0:00:26.8]} 23. Ba7 {[%clk 0:02:05.4]} 23... Ra8 {[%clk
0:00:19]} 24. Qxb7 {[%clk 0:02:04.6]} 24... h5 {[%clk 0:00:18.9]} 25. Bxa6
{[%clk 0:01:55.2]} 25... Nf4 {[%clk 0:00:14.6]} 26. Nxf4 {[%clk 0:01:53]} 26...
gxf4 {[%clk 0:00:14.6]} 27. Rg1 {[%clk 0:01:49.1]} 27... hxg4 {[%clk 0:00:12.8]}
28. Rxg4 {[%clk 0:01:49]} 28... Kf7 {[%clk 0:00:13.3]} 29. Bb5 {[%clk
0:01:44.2]} 29... Rh8 {[%clk 0:00:08.7]} 30. Qxc7 {[%clk 0:01:41.5]} 30... Rd8
{[%clk 0:00:05.8]} 31. Bb6 {[%clk 0:01:39.7]} 31... Rxh2+ {[%clk 0:00:02.3]} 32.
Kxh2 {[%clk 0:01:38]} 32... Qh8+ {[%clk 0:00:03]} 33. Kg2 {[%clk 0:01:36.1]} 1-0